Cogmind - Beta 13 @@@ ROGUE MODE // 2024.04.01 @ 16:49:12 Player: BoomBlip Result: Destroyed by S-43 Plague with Heavy Machine Gun Performance ------------- Evolutions (8) 4000 Regions Visited (16) 3200 Robots Destroyed (77) 385 Value Destroyed (2631) 2631 Prototype IDs (14) 280 Alien Tech Used (0) 0 Bonus (473) 473 TOTAL SCORE: 10969 Bonus ------- High Alert Combat Kills 150 Follower Combat Kills 671 Friendly Fire -348 Cogmind --------- Core Integrity 0/1450 Matter 159/300 Energy 93/100 System Corruption 23% Temperature Cool (0) Movement Core (50) Location -2/Research Parts ------- > --- POWER (2) -------- (None) > --- PROPULSION (6) --- (None) > --- UTILITY (12) ----- Advanced Targeting Computer Advanced Targeting Computer > --- WEAPON (3) ------- (None) > --- INVENTORY (5) ---- Biometal Medium Treads Biometal Medium Treads Improved Arc Projector Enhanced Quantum Rifle Phasing Sabre Peak State ------------ > --- POWER ------------ Improved Deuterium Engine Micro Fission Core > --- PROPULSION ------- VTOL Module Nuclear Pulse Array Nuclear Pulse Array > --- UTILITY ---------- Advanced Cooling System Advanced Sensor Array Improved Signal Interpreter Terrain Scan Processor Improved Hacking Suite Advanced Hacking Suite Advanced Hacking Suite System Shield > --- WEAPON ----------- Advanced Datajack Shock Maul > --- INVENTORY -------- Advanced EMP Blaster Precision Rocket Launcher [Rating: 86] Favorites ----------- Power Heavy Ion Engine Engine Heavy Ion Engine Power Core Micro Fission Core Reactor Quantum Reactor Propulsion Wheel Leg Biometal Leg Wheel Wheel Hover Unit Backup Propulsion I Flight Unit Nuclear Pulse Array Utility High-capacity Storage Unit Device Sensor Drone Bay Storage High-capacity Storage Unit Processor Terrain Scan Processor Hackware Advanced Hacking Suite Protection Hardened Medium Armor Plating Weapon Shock Maul Energy Gun Small Laser Energy Cannon Improved EM Pulse Cannon Ballistic Gun Heavy Assault Rifle Ballistic Cannon Light Cannon Launcher Advanced EMP Blaster Impact Weapon Shock Maul Slashing Weapon Phasing Sabre Special Melee Weapon Advanced Datajack Build | -11 -10 -9 -9 -8 -8 -8 -6 -5 -5 -4 -4 -4 -4 -3 -3 -2 ------- Run | Yrd Mat Mat Min Mat Sto Rec Fac Fac Ext Fac Upp Upp Zhi Pro Res Res Slots Evolved 16 | . . 2 . 2 . . 4 2 . 2 . . . . 2 2 Power 1 | . . . . . . . . . . 1 . . . . . . Propulsion 4 | . . . . 1 . . 1 1 . . . . . . 1 . Utility 10 | . . 1 . 1 . . 3 1 . 1 . . . . 1 2 Weapon 1 | . . 1 . . . . . . . . . . . . . . Parts Attached 128 | . 8 11 3 13 18 . 26 11 3 6 . 3 . 3 7 16 Power 21 | . 1 2 1 1 2 . 2 3 1 2 . . . 2 . 4 Engine 12 | . 1 2 1 1 2 . 2 2 . 1 . . . . . . Core 3 | . . . . . . . . . 1 1 . . . 1 . . Reactor 6 | . . . . . . . . 1 . . . . . 1 . 4 Propulsion 29 | . 3 2 1 3 1 . 6 4 1 2 . . . . 3 3 Treads . | . . . . . . . . . . . . . . . . . Leg 2 | . . . . . . . . . . . . . . . . 2 Wheel 13 | . 3 2 1 3 1 . 2 . . . . . . . 1 . Hover . | . . . . . . . . . . . . . . . . . Flight 14 | . . . . . . . 4 4 1 2 . . . . 2 1 Utility 36 | . 2 2 1 7 1 . 9 3 1 1 . 1 . 1 3 4 Device 11 | . . . 1 3 . . 3 . 1 . . . . 1 1 1 Storage 1 | . 1 . . . . . . . . . . . . . . . Processor 12 | . 1 1 . . . . 4 1 . . . 1 . . 2 2 Hackware 6 | . . . . . . . 2 2 . 1 . . . . . 1 Protection 6 | . . 1 . 4 1 . . . . . . . . . . . Artifact . | . . . . . . . . . . . . . . . . . Weapon 42 | . 2 5 . 2 14 . 9 1 . 1 . 2 . . 1 5 Energy Gun 12 | . 1 4 . . 3 . 2 . . . . . . . . 2 Energy Cannon 5 | . . . . 1 2 . 2 . . . . . . . . . Ballistic Gun 10 | . 1 . . 1 4 . 3 . . . . . . . . 1 Ballistic Cannon 3 | . . 1 . . 2 . . . . . . . . . . . Launcher 6 | . . . . . 1 . 1 1 . . . . . . 1 2 Special Weapon . | . . . . . . . . . . . . . . . . . Impact Weapon 4 | . . . . . 2 . 1 . . . . 1 . . . . Slashing Weapon 1 | . . . . . . . . . . . . 1 . . . . Piercing Weapon . | . . . . . . . . . . . . . . . . . Special Melee Weapon 1 | . . . . . . . . . . 1 . . . . . . Unidentified Prototypes 12 | . . . 1 . 6 . 2 2 . . . . . . 1 . Corrupted Parts 8 | . . . . 2 1 . . . . . . . . . . 5 System Corruption 33 | . . . . 6 7 . . . . . . . . . . 20 Parts Lost 39 | . 1 5 . . . . 11 1 3 . . 1 . 6 1 10 Power 7 | . . 1 . . . . 1 . 1 . . . . 2 . 2 Propulsion 14 | . 1 2 . . . . 4 . 1 . . 1 . 2 1 2 Utility 8 | . . . . . . . 2 1 1 . . . . 1 . 3 Weapon 10 | . . 2 . . . . 4 . . . . . . 1 . 3 Highest Loss Streak 11 | . 1 5 . . . . 11 1 3 . . 1 . 3 1 6 To Critical Strikes . | . . . . . . . . . . . . . . . . . Average Slot Usage (%) 80 | . 89 90 100 93 99 100 92 76 68 73 78 73 73 66 6 20 Engine 7 | . 14 11 11 9 8 9 5 4 3 5 5 5 5 . . . Wheel 14 | . 20 18 22 21 27 27 18 . . . . . . . 1 . Flight 3 | . . . . . . . 3 22 17 13 15 12 10 9 . . Device 10 | . . . 6 16 18 18 15 11 9 10 10 10 10 9 . 1 Storage 6 | . 14 11 11 9 9 9 5 . . . . . . . . . Processor 7 | . 11 11 11 3 . . 10 19 11 10 10 11 15 14 3 1 Hackware 5 | . . . . . . . 6 10 17 20 21 21 21 20 . 3 Protection 3 | . . 7 4 6 9 9 4 . . . . . . . . . Energy Gun 8 | . 17 21 22 12 9 9 6 . . . . . . . . 2 Energy Cannon 1 | . . . . 6 2 . 1 . . . . . . . . . Ballistic Gun 3 | . 10 1 . 2 7 9 4 . . . . . . . . 2 Ballistic Cannon 2 | . . 7 11 6 3 . . . . . . . . . . . Impact Weapon 2 | . . . . . 3 9 4 5 5 5 5 5 5 4 . . Naked Turns 48 | . . . . . . . . . . . . . . 4 10 34 Heaviest Build 85 | 12 48 55 66 85 85 80 83 14 13 22 22 22 17 24 8 56 Greatest Support 58 | 20 26 20 20 34 34 34 50 33 33 30 30 30 17 17 28 58 Greatest Overweight (x) 10 | . 4 5 3 3 3 2 4 . . 3 . 1 . 5 2 10 Average Overweight (x) . | . 2 2 2 2 2 2 1 . . . . . . . . . Largest Inventory Capacity 20 | . 20 20 20 20 20 20 20 5 5 5 5 5 5 5 5 5 Average Capacity 14 | . 19 20 20 20 20 20 18 5 5 5 5 5 5 5 5 5 Most Carried 20 | . 17 16 20 20 20 20 20 5 5 4 4 5 5 5 5 5 Average Carried 13 | . 13 14 18 19 19 20 17 4 4 2 4 4 5 4 4 4 Final Capacity 20 | 8 20 20 20 20 20 20 5 5 5 5 5 5 5 5 5 5 Final Carried 20 | 6 17 16 18 20 20 20 5 5 4 4 4 5 5 5 4 5 Class Distribution -------------------- 19% | Mutant 17% | Commander-Mutant 14% | Scavenger-Tank 11% | Hacker-Mutant 11% | Tank 9% | Hacker-Sprinter 5% | Scavenger-Skirmisher 3% | Scavenger-Mutant Dominant Class ---------------- Mutant | -10/Materials Scavenger-Tank | -9/Materials Scavenger-Skirmisher | -9/Mines Scavenger-Tank | -8/Materials Commander-Mutant | -8/Storage Commander-Mutant | -8/Recycling Commander-Mutant | -6/Factory Hacker-Sprinter | -5/Factory Hacker-Mutant | -5/Extension Hacker-Mutant | -4/Factory Hacker-Sprinter | -4/Upper Caves Hacker-Mutant | -4/Upper Caves Hacker-Mutant | -4/Zhirov Hacker-Mutant | -3/Proximity Caves Mutant | -3/Research Mutant | -2/Research Resources | -11 -10 -9 -9 -8 -8 -8 -6 -5 -5 -4 -4 -4 -4 -3 -3 -2 ----------- Run | Yrd Mat Mat Min Mat Sto Rec Fac Fac Ext Fac Upp Upp Zhi Pro Res Res Matter Collected 1936 | 187 115 126 73 210 343 61 354 50 80 . 60 30 . 20 43 184 Remotely . | . . . . . . . . . . . . . . . . . Salvage Created 2988 | . 343 361 88 383 495 . 500 39 244 . . 74 . 9 55 397 Parts 145 | . 18 22 5 22 31 . 10 3 8 . . . . . 4 22 Haulers Intercepted 4 | . 1 . . 1 2 . . . . . . . . . . . Recyclers Shooed 5 | . 3 . . 1 1 . . . . . . . . . . . Parts Field Recycled . | . . . . . . . . . . . . . . . . . Retrieved Matter . | . . . . . . . . . . . . . . . . . Parts Self-Destructed 1 | . . . . . . . . . . . 1 . . . . . Prevented . | . . . . . . . . . . . . . . . . . Kills | -11 -10 -9 -9 -8 -8 -8 -6 -5 -5 -4 -4 -4 -4 -3 -3 -2 ------- Run | Yrd Mat Mat Min Mat Sto Rec Fac Fac Ext Fac Upp Upp Zhi Pro Res Res Combat Hostiles Destroyed 52 | . 4 11 2 3 6 . 10 1 3 . . 1 . 1 5 5 Melee 3 | . . . . . . . . 1 2 . . . . . . . Guns 23 | . 4 7 2 1 2 . 5 . . . . . . . . 2 Cannons 9 | . . 3 . 2 1 . 3 . . . . . . . . . AOE 11 | . . 1 . . 3 . . . . . . . . . 5 2 Classes Destroyed 14 | . 5 3 1 1 1 . 1 . . . . . . 1 . 1 Worker 4 | . 1 . . 2 . . . 1 . . . . . . . . Builder 5 | . . 1 . 2 1 . . . . . . . . . . 1 Tunneler 1 | . . . 1 . . . . . . . . . . . . . Hauler 4 | . 1 . . 1 2 . . . . . . . . . . . Recycler 4 | . 1 . . 1 1 . . . . . . . . . . 1 Operator 2 | . . . . . 1 . . . 1 . . . . . . . Drone 1 | . . . . . . . . . . . . . . 1 . . Watcher 3 | . 1 . . 1 1 . . . . . . . . . . . Swarmer 13 | . . 4 . . . . 3 1 . . . . . . 5 . Grunt 24 | . 4 6 2 . 6 . 4 . 1 . . 1 . . . . Sentry 7 | . . 1 . 1 2 . 1 . 2 . . . . . . . Specialist 2 | . . . . 2 . . . . . . . . . . . . Hunter 4 | . . . . . . . 2 . . . . . . . . 2 Programmer 3 | . . . . . . . . . . . . . . . . 3 Best Kill Streak 7 | . 5 7 2 4 4 . 4 2 2 . . 1 . 1 5 5 Combat Bots Only 7 | . 4 7 2 2 3 . 4 1 1 . . 1 . 1 5 3 Max Kills in Single Turn 5 | . 1 2 1 2 2 . 1 1 1 . . 1 . 1 5 1 Gunslinging . | . . . . . . . . . . . . . . . . . Exploded 5 | . . 1 . . 2 . . . . . . . . . 5 1 Melee 1 | . . . . . . . . 1 1 . . . . . . . Uniques/NPCs Destroyed . | . . . . . . . . . . . . . . . . . Combat | -11 -10 -9 -9 -8 -8 -8 -6 -5 -5 -4 -4 -4 -4 -3 -3 -2 -------- Run | Yrd Mat Mat Min Mat Sto Rec Fac Fac Ext Fac Upp Upp Zhi Pro Res Res Hostile Shots Fired 701 | . 18 48 7 28 39 2 157 . 32 . 3 43 . 79 58 187 Missed 281 | . 5 18 3 15 5 . 48 . 14 . 2 26 . 42 26 77 Damage Taken 7891 | . 142 554 88 197 634 27 1697 58 485 . 19 318 . 715 667 2290 Core 3348 | . 41 155 . . 152 . 316 30 143 . . 164 . 358 522 1467 Absorbed by Shields 328 | . . . . . . . . . 79 . . . . . 67 182 Redirected to Shielding 15 | . . . . 15 . . . . . . . . . . . . Regen/Repaired (Parts) 5 | . . . . . . . . 5 . . . . . . . . Core Remaining (%) 71 | 100 83 . 61 . . 72 62 . 82 . . . . 54 59 . Volleys Fired 171 | . 37 28 7 19 26 . 38 . . . . . . . 2 14 Largest 3 | . 2 3 3 3 3 . 3 . . . . . . . 1 3 Hottest 186 | . 80 125 120 149 164 . 186 . . . . . . . 43 141 Shots Fired 414 | . 74 69 21 57 74 . 88 . . . . . . . 2 29 Gun 302 | . 74 55 14 29 39 . 71 . . . . . . . . 20 Cannon 97 | . . 14 7 28 31 . 17 . . . . . . . . . Launcher 15 | . . . . . 4 . . . . . . . . . 2 9 Special . | . . . . . . . . . . . . . . . . . Kinetic 128 | . 31 19 7 19 30 . 13 . . . . . . . . 9 Thermal 208 | . 43 50 7 1 32 . 75 . . . . . . . . . Explosive 12 | . . . . . 4 . . . . . . . . . 2 6 Electromagnetic 66 | . . . 7 37 8 . . . . . . . . . . 14 Robot Hit Streak 28 | . 28 9 5 9 10 . 7 . . . . . . . 3 3 Robot Miss Streak 5 | . 4 5 2 3 5 . 5 . . . . . . . . 3 Penetration Max 1 | . . . . . . . . . . . . . . . . 1 Secondary Targets 1 | . . . . . . . 1 . . . . . . . . . Max Gunslinging Chain 1 | . . . . . . . 1 . . . . . . . . . Shots Hit Robots 250 | . 53 39 9 35 38 1 49 2 8 . 1 1 . 2 2 10 Core Hits 125 | . 17 17 5 17 20 . 23 2 2 . . . . . 9 13 Critical Kills 3 | . 1 . . . . . 1 . 1 . . . . . . . Critical Parts Destroyed 3 | . . . . . . 1 . . 2 . . . . . . . Critical Strikes 19 | . 4 2 . 1 2 1 6 . 3 . . . . . . . Burn 11 | . 3 2 . . 1 . 5 . . . . . . . . . Meltdown 1 | . . . . . . . 1 . . . . . . . . . Destroy 1 | . 1 . . . . . . . . . . . . . . . Blast 2 | . . . . 1 1 . . . . . . . . . . . Smash 4 | . . . . . . 1 . . 3 . . . . . . . Melee Attacks 70 | . . . . . 6 2 5 15 17 19 1 1 1 3 . . Impact 69 | . . . . . 6 2 5 15 17 19 . 1 1 3 . . Slashing . | . . . . . . . . . . . . . . . . . Piercing . | . . . . . . . . . . . . . . . . . Sneak Attacks 2 | . . . . . . . . 2 . . . . . . . . Combat Hostiles 1 | . . . . . . . . 1 . . . . . . . . Follow-up Attacks . | . . . . . . . . . . . . . . . . . Damage Inflicted 7232 | . 505 742 177 760 1203 46 1016 274 431 . . 93 . 129 856 1000 Guns 2675 | . 505 385 90 226 438 . 768 . . . . . . . . 263 Cannons 1274 | . . 137 51 505 336 . 245 . . . . . . . . . Explosions 2293 | . . 220 22 29 429 . . . . . . . . . 856 737 Melee 973 | . . . . . . 46 . 274 431 . . 93 . 129 . . Ramming 17 | . . . 14 . . . 3 . . . . . . . . . Kinetic 1219 | . 164 157 51 265 246 . 97 . . . . . . . . 239 Thermal 2118 | . 341 365 34 41 421 . 916 . . . . . . . . . Explosive 2060 | . . 220 . . 429 . . . . . . . . . 856 555 Electromagnetic 845 | . . . 78 454 107 . . . . . . . . . . 206 Impact 973 | . . . . . . 46 . 274 431 . . 93 . 129 . . Slashing . | . . . . . . . . . . . . . . . . . Piercing . | . . . . . . . . . . . . . . . . . Highest Corruption 23 | . . . . 6 13 13 1 2 2 . . . . . 5 23 Average Corruption 10 | . . . . 1 12 13 1 2 2 . . . . . 4 19 Corruption Purged . | . . . . . . . . . . . . . . . . . Corruption Blocked . | . . . . . . . . . . . . . . . . . Effects 67 | . . . . . 36 11 1 1 2 . . . . . 1 15 Message Errors 12 | . . . . . 5 4 . 1 . . . . . . . 2 Matter Fused 13 | . . . . . 7 3 . . . . . . . . . 3 Heat Flow Errors 15 | . . . . . 7 2 . . 1 . . . . . 1 4 Energy Discharges 6 | . . . . . 4 . 1 . . . . . . . . 1 Parts Rejected 1 | . . . . . 1 . . . . . . . . . . . Data Loss (minor) 8 | . . . . . 4 . . . 1 . . . . . . 3 Data Loss (major) 5 | . . . . . 3 2 . . . . . . . . . . Misfires 1 | . . . . . 1 . . . . . . . . . . . Misdirections 2 | . . . . . 2 . . . . . . . . . . . Weapon Failures 4 | . . . . . 2 . . . . . . . . . . 2 Overload Shots . | . . . . . . . . . . . . . . . . . Overflow Damage 459 | . . 131 . 1 . 46 7 . 135 . . 8 . 21 14 96 Projectiles 10 | . . 2 . 1 . . 7 . . . . . . . . . Explosions 239 | . . 129 . . . . . . . . . . . . 14 96 Melee 210 | . . . . . . 46 . . 135 . . 8 . 21 . . Knockbacks 9 | . . 2 2 1 . . . . 3 . . 1 . . . . Impact 4 | . . . . . . . . . 3 . . 1 . . . . Kinetic 4 | . . 1 2 1 . . . . . . . . . . . . Secondary 1 | . . 1 . . . . . . . . . . . . . . Self-Inflicted Damage 366 | . . 221 33 . 41 . 1 . . . . . . . . 70 Shots 7 | . . 2 1 . 1 . . . . . . . . . . 3 Rammed 3 | . . . 2 . . . 1 . . . . . . . . . Targets Rammed 3 | . . . 2 . . . 1 . . . . . . . . . Kicked . | . . . . . . . . . . . . . . . . . Crushed . | . . . . . . . . . . . . . . . . . Highest Temperature 558 | . 182 404 247 209 515 239 558 . 123 . . . . . 160 308 Average Temperature 145 | . 43 209 87 68 117 112 270 . 66 . . . . . 91 148 Received Heat Transfer 1316 | . 78 135 33 42 243 9 339 . 73 . . 130 . 27 . 207 Effects 31 | . . 4 . . 7 . 20 . . . . . . . . . Shutdowns 7 | . . 2 . . 2 . 3 . . . . . . . . . Energy Bleed 8 | . . 1 . . 3 . 4 . . . . . . . . . Interference 7 | . . 1 . . . . 6 . . . . . . . . . Matter Decay 1 | . . . . . . . 1 . . . . . . . . . Short Circuit 1 | . . . . . 1 . . . . . . . . . . . Damage (minor) 2 | . . . . . . . 2 . . . . . . . . . Damage (major) 3 | . . . . . . . 3 . . . . . . . . . Damage (core) 2 | . . . . . 1 . 1 . . . . . . . . . Siege Activations . | . . . . . . . . . . . . . . . . . Robots Corrupted 1 | . . . . . . . . . . . . . . . . 1 Combat Hostiles 1 | . . . . . . . . . . . . . . . . 1 Parts Fried 8 | . . . . . . . . . 1 . . 2 . 2 . 3 Impact Corruptions 9 | . . . . . . 1 . . 6 . . 1 . 1 . . Robots Melted 2 | . . . . . . . 2 . . . . . . . . . Combat Hostiles 2 | . . . . . . . 2 . . . . . . . . . Parts Melted 22 | . 2 3 . . 1 . 16 . . . . . . . . . Heat Transferred 5309 | . 1162 1174 25 25 851 . 2072 . . . . . . . . . Parts Sabotaged . | . . . . . . . . . . . . . . . . . Parts Stolen . | . . . . . . . . . . . . . . . . . Parts Stripped . | . . . . . . . . . . . . . . . . . Power Chain Reactions 2 | . . . 1 1 . . . . . . . . . . . . Alert | -11 -10 -9 -9 -8 -8 -8 -6 -5 -5 -4 -4 -4 -4 -3 -3 -2 ------- Run | Yrd Mat Mat Min Mat Sto Rec Fac Fac Ext Fac Upp Upp Zhi Pro Res Res Peak Influence 570 | . 129 313 197 540 558 203 253 150 372 270 . . . . 487 570 Initial 320 | . . 1 121 . 146 166 134 46 73 172 . . . . 320 267 Average 221 | . 58 213 135 283 347 186 134 116 182 156 . . . . 396 384 Maximum Alert Level 2 | . . 1 . 2 2 1 1 . 1 1 . . . . 2 2 Low Security (%) 53 | . 100 36 100 28 13 55 82 100 58 69 . . . . . . Level 1 36 | . . 63 . 47 59 44 17 . 41 30 . . . . 53 81 Level 2 10 | . . . . 24 27 . . . . . . . . . 46 18 Level 3 . | . . . . . . . . . . . . . . . . . Level 4 . | . . . . . . . . . . . . . . . . . Level 5 . | . . . . . . . . . . . . . . . . . High Security . | . . . . . . . . . . . . . . . . . Max Security . | . . . . . . . . . . . . . . . . . Squads Dispatched 21 | . 2 2 . 1 1 . 9 1 . 1 . . . . 1 3 Investigation 11 | . 1 2 . . 1 . 4 1 . 1 . . . . . 1 Extermination 1 | . . . . . . . . . . . . . . . . 1 Reinforcement 9 | . 1 . . 1 . . 5 . . . . . . . 1 1 Assault . | . . . . . . . . . . . . . . . . . Garrison . | . . . . . . . . . . . . . . . . . Intercept . | . . . . . . . . . . . . . . . . . Searches Triggered . | . . . . . . . . . . . . . . . . . Construction Impeded 1 | . . . . . . . . . . . . . . . . 1 Haulers Reinforced . | . . . . . . . . . . . . . . . . . Active Scanning Responses . | . . . . . . . . . . . . . . . . . Cargo Convoy Interrupts . | . . . . . . . . . . . . . . . . . Stealth | -11 -10 -9 -9 -8 -8 -8 -6 -5 -5 -4 -4 -4 -4 -3 -3 -2 --------- Run | Yrd Mat Mat Min Mat Sto Rec Fac Fac Ext Fac Upp Upp Zhi Pro Res Res Distress Signals 9 | . . 2 . . 1 . 2 . 2 . . . . . 1 1 Communications Jammed . | . . . . . . . . . . . . . . . . . Distress Signals . | . . . . . . . . . . . . . . . . . Times Spotted 171 | . 6 15 2 16 18 1 21 3 17 2 2 18 . 10 11 29 Peak Tracking Total 14 | . 4 6 2 4 4 1 4 2 8 1 1 11 . 4 6 14 Tactical Retreats 11 | . . . . 1 . . . . 1 . . 5 . 2 . 2 Traps | -11 -10 -9 -9 -8 -8 -8 -6 -5 -5 -4 -4 -4 -4 -3 -3 -2 ------- Run | Yrd Mat Mat Min Mat Sto Rec Fac Fac Ext Fac Upp Upp Zhi Pro Res Res Traps Triggered 4 | . . . . . 1 . . . . . . . . . 2 1 Indirectly . | . . . . . . . . . . . . . . . . . Trap Hack Attempts . | . . . . . . . . . . . . . . . . . Triggered . | . . . . . . . . . . . . . . . . . Disarmed . | . . . . . . . . . . . . . . . . . Reprogrammed . | . . . . . . . . . . . . . . . . . Reused . | . . . . . . . . . . . . . . . . . Traps Extracted . | . . . . . . . . . . . . . . . . . Installed . | . . . . . . . . . . . . . . . . . Triggered 4 | . . . . . . . . . . . . 3 . . . 1 Machines | -11 -10 -9 -9 -8 -8 -8 -6 -5 -5 -4 -4 -4 -4 -3 -3 -2 ---------- Run | Yrd Mat Mat Min Mat Sto Rec Fac Fac Ext Fac Upp Upp Zhi Pro Res Res Machines Disabled 14 | . . 2 1 2 5 . 1 . 2 1 . . . . . . Max in Single Turn 2 | . . 2 1 1 1 . . . 1 1 . . . . . . Garrison Access 1 | . . . . . . . 1 . . . . . . . . . Machines Repaired . | . . . . . . . . . . . . . . . . . Machines Dismantled . | . . . . . . . . . . . . . . . . . Machines Sabotaged . | . . . . . . . . . . . . . . . . . Overloaded Fab Kills . | . . . . . . . . . . . . . . . . . Hacking | -11 -10 -9 -9 -8 -8 -8 -6 -5 -5 -4 -4 -4 -4 -3 -3 -2 --------- Run | Yrd Mat Mat Min Mat Sto Rec Fac Fac Ext Fac Upp Upp Zhi Pro Res Res Machines Accessed 43 | . 3 3 1 2 10 3 7 1 6 4 . 1 . 1 1 . Terminals 36 | . 2 3 . 2 10 2 6 . 6 3 . 1 . 1 . . Fabricators 1 | . . . . . . . . . . . . . . . 1 . Repair Stations 2 | . . . . . . . . 1 . 1 . . . . . . Recycling Units 2 | . 1 . . . . 1 . . . . . . . . . . Scanalyzers . | . . . . . . . . . . . . . . . . . Garrison Access 1 | . . . . . . . 1 . . . . . . . . . Total Hacks 129 | . 7 14 1 7 29 9 19 5 12 22 . 1 . 1 2 . Successful 69 | . 2 4 1 3 12 4 8 5 7 20 . 1 . 1 1 . Failed 60 | . 5 10 . 4 17 5 11 . 5 2 . . . . 1 . Catastrophic 7 | . 1 1 . 1 1 1 1 . 1 . . . . . . . Database Lockouts . | . . . . . . . . . . . . . . . . . Manual 73 | . 4 13 . 6 18 6 13 . 3 7 . 1 . . 2 . Terminals 110 | . 6 14 . 7 29 8 18 . 12 14 . 1 . 1 . . Fabricators 2 | . . . . . . . . . . . . . . . 2 . Repair Stations 13 | . . . . . . . . 5 . 8 . . . . . . Recycling Units 2 | . 1 . . . . 1 . . . . . . . . . . Scanalyzers . | . . . . . . . . . . . . . . . . . Garrison Access 1 | . . . . . . . 1 . . . . . . . . . Terminal Hacks 36 | . 2 2 1 2 8 1 3 . 5 10 . 1 . 1 . . Record 11 | . . 1 . . 3 . 2 . 1 2 . 1 . 1 . . Robot Analysis 1 | . . . . . . . . . . 1 . . . . . . Prototype ID Bank 1 | . 1 . . . . . . . . . . . . . . . Open Door 9 | . . . 1 . 4 . . . 4 . . . . . . . Open DSF 2 | . . . . . . . 1 . . 1 . . . . . . Level Access Points 1 | . . . . . . . . . . 1 . . . . . . Branch Access Points 2 | . . 1 . 1 . . . . . . . . . . . . Alert Level 1 | . . . . . . 1 . . . . . . . . . . Unreport Threat 4 | . . . . . 1 . . . . 3 . . . . . . Locate Traps 1 | . 1 . . . . . . . . . . . . . . . Assault Status 1 | . . . . . . . . . . 1 . . . . . . Recall Assault 1 | . . . . . . . . . . 1 . . . . . . Hauler Manifests 1 | . . . . 1 . . . . . . . . . . . . Fabricator Hacks 1 | . . . . . . . . . . . . . . . 1 . Network Status 1 | . . . . . . . . . . . . . . . 1 . Repair Station Hacks 12 | . . . . . . . . 5 . 7 . . . . . . Scan Component 7 | . . . . . . . . 3 . 4 . . . . . . Repair 4 | . . . . . . . . 2 . 2 . . . . . . Refit 1 | . . . . . . . . . . 1 . . . . . . Recycling Unit Hacks 1 | . . . . . . 1 . . . . . . . . . . Retrieve Components 1 | . . . . . . 1 . . . . . . . . . . Scanalyzer . | . . . . . . . . . . . . . . . . . Garrison Access Hacks 1 | . . . . . . . 1 . . . . . . . . . Seal Access 1 | . . . . . . . 1 . . . . . . . . . Unauthorized Hacks 18 | . . 2 . 1 4 2 4 . 2 3 . . . . . . Terminals 18 | . . 2 . 1 4 2 4 . 2 3 . . . . . . Assimilate 1 | . . . . . . . . . . 1 . . . . . . Botnet 17 | . . 2 . 1 4 2 4 . 2 2 . . . . . . Fabricators . | . . . . . . . . . . . . . . . . . Repair Stations . | . . . . . . . . . . . . . . . . . Recycling Units . | . . . . . . . . . . . . . . . . . Scanalyzers . | . . . . . . . . . . . . . . . . . Garrison Access . | . . . . . . . . . . . . . . . . . Data Cores Recovered 2 | . . . . . 1 . . . 1 . . . . . . . Used 1 | . . . . . . . . . 1 . . . . . . . Hacking Detections 32 | . 3 3 . 2 8 3 6 1 3 3 . . . . . . Full Trace Events 12 | . 1 3 . . 1 1 4 1 . 1 . . . . . . Feedback Events 1 | . . . . . . . 1 . . . . . . . . . Corruption 1 | . . . . . . . 1 . . . . . . . . . Feedback Blocked . | . . . . . . . . . . . . . . . . . Robot Schematics Acquired . | . . . . . . . . . . . . . . . . . Robots Built . | . . . . . . . . . . . . . . . . . Authchips . | . . . . . . . . . . . . . . . . . Time . | . . . . . . . . . . . . . . . . . Total Robot Build Rating . | . . . . . . . . . . . . . . . . . Part Schematics Acquired . | . . . . . . . . . . . . . . . . . Parts Built . | . . . . . . . . . . . . . . . . . Authchips . | . . . . . . . . . . . . . . . . . Time . | . . . . . . . . . . . . . . . . . Total Part Build Rating . | . . . . . . . . . . . . . . . . . Parts Repaired 3 | . . . . . . . . 2 . 1 . . . . . . Time 182 | . . . . . . . . 70 . 112 . . . . . . Parts Recycled . | . . . . . . . . . . . . . . . . . Recycled Matter . | . . . . . . . . . . . . . . . . . Retrieved Matter . | . . . . . . . . . . . . . . . . . Retrieved Components 2 | . . . . . . 2 . . . . . . . . . . Parts Scanalyzed . | . . . . . . . . . . . . . . . . . Part Schematics Acquired . | . . . . . . . . . . . . . . . . . Parts Damaged . | . . . . . . . . . . . . . . . . . Bothacking | -11 -10 -9 -9 -8 -8 -8 -6 -5 -5 -4 -4 -4 -4 -3 -3 -2 ------------ Run | Yrd Mat Mat Min Mat Sto Rec Fac Fac Ext Fac Upp Upp Zhi Pro Res Res Used RIF Installer . | . . . . . . . . . . . . . . . . . Robots Hacked . | . . . . . . . . . . . . . . . . . Non-combat . | . . . . . . . . . . . . . . . . . Combat . | . . . . . . . . . . . . . . . . . Robot Hacks Applied . | . . . . . . . . . . . . . . . . . Relay Couplers Released . | . . . . . . . . . . . . . . . . . Fabnet Peak Effective % . | . . . . . . . . . . . . . . . . . Robots Rewired . | . . . . . . . . . . . . . . . . . Allies Hacked . | . . . . . . . . . . . . . . . . . Hacks Repelled . | . . . . . . . . . . . . . . . . . Allies | -11 -10 -9 -9 -8 -8 -8 -6 -5 -5 -4 -4 -4 -4 -3 -3 -2 -------- Run | Yrd Mat Mat Min Mat Sto Rec Fac Fac Ext Fac Upp Upp Zhi Pro Res Res Total Allies 19 | . . . 3 . 10 . . . 6 . . . . . . . Largest Group 10 | . . . 3 3 10 8 8 . 4 2 . . . . . . Highest-Rated Group 236 | . . . 40 40 173 141 141 . 236 185 . . . . . . Highest-Rated Ally 159 | . . . 16 16 29 29 29 . 159 146 . . . . . . Total Orders 36 | . . . 3 9 2 3 19 . . . . . . . . . ROAM 1 | . . . . . . . 1 . . . . . . . . . EXPLORE 25 | . . . 2 6 2 3 12 . . . . . . . . . RETURN 10 | . . . 1 3 . . 6 . . . . . . . . . Ally Attacks 235 | . . . . 55 61 5 49 . 59 6 . . . . . . Total Damage 3352 | . . . . 447 807 82 522 . 1402 92 . . . . . . Kills 34 | . . . . 12 9 1 3 . 8 1 . . . . . . Allies Corrupted . | . . . . . . . . . . . . . . . . . Allies Melted . | . . . . . . . . . . . . . . . . . Intel | -11 -10 -9 -9 -8 -8 -8 -6 -5 -5 -4 -4 -4 -4 -3 -3 -2 ------- Run | Yrd Mat Mat Min Mat Sto Rec Fac Fac Ext Fac Upp Upp Zhi Pro Res Res Robot Analysis Total 1 | . . . . . . . . . . 1 . . . . . . Derelict Logs Recovered 7 | . . . 2 . . . . . . . 2 3 . . . . Drone Launches 34 | . . . 3 7 2 3 19 . . . . . . . . . Drone Recoveries 29 | . . . 1 9 . 3 16 . . . . . . . . . Exploration | -11 -10 -9 -9 -8 -8 -8 -6 -5 -5 -4 -4 -4 -4 -3 -3 -2 ------------- Run | Yrd Mat Mat Min Mat Sto Rec Fac Fac Ext Fac Upp Upp Zhi Pro Res Res Turns Passed 5173 | . 482 231 493 421 777 308 685 191 220 146 166 147 7 247 195 457 Spaces Moved 5369 | 1 284 114 388 270 505 255 544 401 422 215 476 410 11 401 233 439 Core 256 | . . . . . . . . . . . . . . 9 60 187 Treads . | . . . . . . . . . . . . . . . . . Legs 134 | 1 9 . . . . . . . . . . . . . . 124 Wheels 2292 | . 275 114 388 270 505 255 398 . . . . . . . 87 . Hover 2 | . . . . . . . . . . 2 . . . . . . Flight 2685 | . . . . . . . 146 401 422 213 476 410 11 392 86 128 Fastest Speed 27 | 120 105 110 110 110 116 116 27 27 32 32 32 32 34 34 40 40 Average Speed 75 | 120 122 115 118 120 117 116 90 29 34 36 32 33 34 53 68 88 Slowest Speed 550 | 120 260 155 125 125 135 116 150 35 35 320 32 114 34 435 150 550 Overloaded Moves . | . . . . . . . . . . . . . . . . . Propulsion Burnouts . | . . . . . . . . . . . . . . . . . Robots Hopped 25 | . . . . . . . 1 1 14 1 2 2 . 2 2 . Cave-ins Triggered 1 | . . . . . . . . 1 . . . . . . . . Exploration Rate (%) 39 | 2 38 19 98 36 82 80 33 12 38 9 67 62 7 64 7 13 Regions Visited 16 Branch Regions 8 Pre-discovered Areas 4 | . . . 1 . . . . . . . 1 2 . . . . Known Exits Taken 11 | . . 1 1 1 . . 1 1 1 1 1 1 1 1 . . Unknown Exits Taken 5 | 1 1 . . . 1 1 . . . . . . . . 1 . Scrap Searched 6 | . . . 1 . . . . . . . 1 1 . 3 . . Spaces Dug 58 | . . . . . 19 1 5 13 5 14 . . 1 . . . Terrain Destroyed 176 | . . 39 6 . 36 1 5 13 5 14 . . 1 . 22 34 Melee 40 | . . . . . 1 1 5 13 5 14 . . 1 . . . Projectile . | . . . . . . . . . . . . . . . . . AOE 136 | . . 39 6 . 35 . . . . . . . . . 22 34 Terrain Rammed . | . . . . . . . . . . . . . . . . . Walls Destroyed . | . . . . . . . . . . . . . . . . . Machines Disabled . | . . . . . . . . . . . . . . . . . Actions | -11 -10 -9 -9 -8 -8 -8 -6 -5 -5 -4 -4 -4 -4 -3 -3 -2 --------- Run | Yrd Mat Mat Min Mat Sto Rec Fac Fac Ext Fac Upp Upp Zhi Pro Res Res Total 5994 | . 346 155 406 327 629 264 659 442 447 242 487 416 11 425 262 476 Wait 96 | . 6 . . 1 18 3 17 . 17 . 13 1 . 20 . . Move 5309 | . 283 113 387 269 504 254 541 398 398 212 471 405 10 397 228 439 Hop 19 | . . . . . . . 1 1 9 1 2 2 . 1 2 . Pick Up 75 | . 10 2 3 9 18 2 12 7 2 2 . 1 . 1 . 6 Fast Attach 50 | . 4 3 1 6 7 . 1 5 1 3 . 1 . 2 6 10 Attach 41 | . . 5 . . . . 18 5 2 3 . 1 . 1 1 5 Detach 7 | . . . . . 1 . 1 1 . 1 . 2 . . 1 . Swap 37 | . 4 3 2 7 11 . 7 1 . . . 1 . . . 1 Drop 85 | . 2 1 4 16 27 2 17 9 1 1 . 1 . . 3 1 Fire 171 | . 37 28 7 19 26 . 38 . . . . . . . 2 14 Melee 70 | . . . . . 6 2 5 15 17 19 1 1 1 3 . . Ram 3 | . . . 2 . . . 1 . . . . . . . . . Kick . | . . . . . . . . . . . . . . . . . Crush . | . . . . . . . . . . . . . . . . . Escape Stasis 27 | . . . . . 8 . . . . . . . . . 19 . Rewire 4 | . . . . . 3 1 . . . . . . . . . . Trap . | . . . . . . . . . . . . . . . . . Miscellaneous . | . . . . . . . . . . . . . . . . . Route ------- -11/Scrapyard -10/Materials -9/Materials -9/Mines (discovered 2 exits: *Mat x2) -8/Materials (discovered 3 exits: *Fac x2 / *Sto) -8/Storage -8/Recycling -6/Factory -5/Factory -5/Extension -4/Factory (discovered 5 exits: Res x4 / *Upp) -4/Upper Caves -4/Upper Caves (discovered 2 exits: *Res / *Zhi) -4/Zhirov -3/Proximity Caves -3/Research -2/Research History --------- Turn | Location | Event 1 | -11/Scrapyard | Discovered new exit (range 0) 1 | -11/Scrapyard | Entered Materials 181 | -10/Materials | Discovered new exit (range 17) 318 | -10/Materials | Build established: Mutant 483 | -10/Materials | Entered another Materials area 483 | -9/Materials | Evolved 2 slots: Utility x1, Weapon x1 494 | -9/Materials | Identified exit to Mines 568 | -9/Materials | Destroyed 7 combat bots 578 | -9/Materials | Lost 5 parts (1p2n2w) 714 | -9/Materials | Entered Mines 728 | -9/Mines | Learned 2 Materials zone layouts 781 | -9/Mines | Learned location of Zion (-7) 890 | -9/Mines | Build established: Scavenger-Tank 918 | -9/Mines | Found the Drone Emporium 925 | -9/Mines | Found Prototype Device 925 | -9/Mines | Identified Sensor Drone Bay 1031 | -9/Mines | Assisted by bots powering up and referring to "LRC-V3" 1054 | -9/Mines | Discovered new exit (range 52) 1115 | -9/Mines | Discovered new exit (range 43) 1115 | -9/Mines | Identified exit to Materials 1207 | -9/Mines | Entered Materials 1207 | -8/Materials | Accompanied by 5 allies 1207 | -8/Materials | Evolved 2 slots: Propulsion x1, Utility x1 1208 | -8/Materials | Identified exit to Factory 1210 | -8/Materials | Build established: Scavenger-Skirmisher 1415 | -8/Materials | Identified exit to Storage 1622 | -8/Materials | Discovered exit to Factory (range 16) 1628 | -8/Materials | Entered Storage 1628 | -8/Storage | Accompanied by 2 allies 1645 | -8/Storage | System corruption reached 10% 1998 | -8/Storage | Assisted by bots powering up and referring to "LRC-V3" 2400 | -8/Storage | Discovered new exit (range 4) 2405 | -8/Storage | Entered Recycling 2405 | -8/Recycling | Accompanied by 8 allies 2586 | -8/Recycling | Discovered new exit (range 28) 2608 | -8/Recycling | Build established: Commander-Mutant 2713 | -8/Recycling | Entered Factory 2713 | -6/Factory | Accompanied by 8 allies 2713 | -6/Factory | Evolved 4 slots: Propulsion x1, Utility x3 3016 | -6/Factory | Lost 4 allies 3199 | -6/Factory | Lost 4 allies 3324 | -6/Factory | Lost 11 parts (1p4n2u4w) 3386 | -6/Factory | Discovered new exit (range 6) 3398 | -6/Factory | Identified exit to Factory 3398 | -6/Factory | Entered another Factory area 3398 | -5/Factory | Evolved 2 slots: Propulsion x1, Utility x1 3407 | -5/Factory | Repaired Deuterium Engine 3439 | -5/Factory | Repaired VTOL Module? 3533 | -5/Factory | Crushed by falling debris 3585 | -5/Factory | Discovered new exit (range 11) 3588 | -5/Factory | Identified exit to Extension 3589 | -5/Factory | Entered Extension 3626 | -5/Extension | Rescued a captive Derelict 3627 | -5/Extension | Rescued a captive Derelict 3683 | -5/Extension | Rescued A7 3698 | -5/Extension | Rescued a captive Derelict 3707 | -5/Extension | Rescued a captive Derelict 3715 | -5/Extension | Rescued a captive Derelict 3747 | -5/Extension | Spotted B-75 Beast 3750 | -5/Extension | Spotted B-75 Beast 3762 | -5/Extension | Discovered new exit (range 3) 3765 | -5/Extension | Identified exit to Factory 3781 | -5/Extension | Allies destroyed B-75 Beast 3785 | -5/Extension | Lost 3 parts (1p1n1u) 3787 | -5/Extension | Allies destroyed B-75 Beast 3809 | -5/Extension | Entered Factory 3809 | -4/Factory | Accompanied by 2 allies (A7) 3809 | -4/Factory | Evolved 2 slots: Power x1, Utility x1 3833 | -4/Factory | Repaired Nuclear Pulse Array 3886 | -4/Factory | Identified exit to Research 3952 | -4/Factory | Discovered new exit (range 10) 3955 | -4/Factory | Identified exit to Upper Caves 3955 | -4/Factory | Entered Upper Caves 4012 | -4/Upper Caves | Learned location of Testing (-2) 4047 | -4/Upper Caves | Encountered a Warlord checkpoint 4060 | -4/Upper Caves | Learned 4 Research zone layouts 4068 | -4/Upper Caves | Attracted the attention of an 0b10 checkpoint 4098 | -4/Upper Caves | Discovered new exit (range 10) 4121 | -4/Upper Caves | Identified exit to Upper Caves 4121 | -4/Upper Caves | Entered another Upper Caves area 4122 | -4/Upper Caves | Discovered exit to Research (range 6) 4182 | -4/Upper Caves | Attracted the attention of an 0b10 checkpoint 4243 | -4/Upper Caves | Learned location of Quarantine (-3) 4253 | -4/Upper Caves | Spotted B-86 Titan 4265 | -4/Upper Caves | Discovered new exit (range 12) 4267 | -4/Upper Caves | Identified exit to Zhirov 4268 | -4/Upper Caves | Entered Zhirov 4268 | -4/Zhirov | Discovered new exit (range 3) 4271 | -4/Zhirov | Identified exit to Proximity Caves 4275 | -4/Zhirov | Entered Proximity Caves 4277 | -3/Proximity Caves | Spotter reported a threat 4278 | -3/Proximity Caves | Spotter reported a threat 4358 | -3/Proximity Caves | Attracted the attention of an 0b10 checkpoint 4360 | -3/Proximity Caves | Spotted B-86 Titan 4482 | -3/Proximity Caves | Build established: Hacker-Mutant 4514 | -3/Proximity Caves | Discovered exit to Research (range 10) 4518 | -3/Proximity Caves | Released all parts (11) 4522 | -3/Proximity Caves | Entered Research 4522 | -3/Research | Evolved 2 slots: Propulsion x1, Utility x1 4546 | -3/Research | Lost 3 parts (2n1w) 4710 | -3/Research | Discovered new exit (range 15) 4717 | -3/Research | Entered another Research area 4717 | -2/Research | Evolved 2 slots: Utility x2 4803 | -2/Research | Lost 3 parts (1n2u) 4847 | -2/Research | Build established: Mutant 4870 | -2/Research | System corruption reached 10% 5126 | -2/Research | Released all parts (6) 5129 | -2/Research | Spotted B-90 Cyclops 5131 | -2/Research | Core integrity fell below 50% 5135 | -2/Research | Core integrity fell below 20% 5170 | -2/Research | Lost 6 parts (2p1n1u2w) 5174 | -2/Research | Destroyed by S-43 Plague with Heavy Machine Gun Last Messages --------------- 05127_ A-15 Conveyor destroyed. 05131_ Triggered Gamma Bomb Trap. 05131_ A bubble of electromagnetic force engulfs the area. 05131_ S-43 Plague destroyed. 05131_ G-73 Enforcer destroyed. 05132_ System corrupted: Energy discharge (-32). 05132_ U-05 Engineer lays Concrete. 05133_ U-05 Engineer builds a Wall. 05133_ Acquired 40 matter. 05134_ Acquired Corrupted Xenon Bombardment Thruster. 05134_ Integrated Corrupted Xenon Bombardment Thruster (+1). 05135_ S-43 Plague misfires. 05138_ G-73 Enforcer IFF system glitched. 05138_ G-73 Enforcer destroyed. 05138_ G-73 Enforcer IFF system glitched. 05139_ Xenon Bombardment Thruster destroyed. 05154_ System corrupted: Component data lost. 05162_ Acquired Biometal Medium Treads. 05165_ Acquired Adv. Targeting Computer. 05170_ Slug penetrates Door. Map ----- +----------------------------------------------------+ | #?????????????????????????????????? | | #######"" ""## #?????????????????????????????????? | | ??????#""F""## #?????????????????????????????????? | | ??????# """ ## #?????????????????????????????????? | | ??????######## #?????????????????????????????????? | | ?????????????# #?????????????????????????????????? | | ?????????????# #?????????????????????????????????? | | ?????????????# #?????????????????????????????????? | | ?????????????#+############??????????????????????? | | ?????????????# #??????????????????????? | | ?????????????# #??????????????????????? | | ?????????????# """ #??????????????????????? | | ?????????????# """ #??????????????????????? | | ?????????????# """ #??????????????????????? | | ?????????????#= ! #??????????????????????? | | ?????????????#= #??????????????????????? | | ?????????????#= " " #??????????????????????? | | ?????????????# "Y" #??????????????????????? | | ?????????????# """ ##?????????????????????? | | ?????????????# #?????????????????????? | | ?????????????# ##?????????##??????????? | | ??????????#+########;######??????? #??????????? | | ?????? #######+## R #??????????? | | ?????? #??????????? | | ?????? s #??????????? | | ??????? s s @ h g ""?????????? | | ??????? """"""" s""""""" """"""" g "??????????? | | ???????????"""" """"""" """"""???????????????? | | ???????????"""" """"""" """"?????????????????? | | ???????????? ?????????????????? | | ???????????? ????????????????? | | ??????????? ?? ???????????????? | | ?????????? ????? #### ???????????????? | | ??????????#####?????? ###+####???? ??????????????? | | ????????????????????? ???????????????????????????? | | ?????????????????????????????????????????????????? | | ?????????????????????????????????????????????????? | | ?????????????????????????????????????????????????? | | ?????????????????????????????????????????????????? | | ?????????????????????????????????????????????????? | | ?????????????????????????????????????????????????? | | ?????????????????????????????????????????????????? | | ?????????????????????????????????????????????????? | | ?????????????????????????????????????????????????? | | ?????????????????????????????????????????????????? | | ?????????????????????????????????????????????????? | | ?????????????????????????????????????????????????? | | ?????????????????????????????????????????????????? | | ?????????????????????????????????????????????????? | | ?????????????????????????????????????????????????? | +----------------------------------------------------+ Best States ------------- Heat Dissipation 74 Energy Generation 45 Energy Capacity 440 Matter Stores 300 Matter Capacity 300 Sight Range 18 Robot Scan Range 16 Terrain Scan Density 85 Jamming Range 14 Additional Mass Support 12 Armor Coverage 225 Weapon Shielding 66 Evasion (%) 64 Targeting Accuracy 16 Melee Accuracy 12 Core Analysis 6 Offensive Hacking 40 Defensive Hacking 10 Authchip Count 1 Item Schematics ----------------- None Robot Schematics ------------------ None Fabricated ------------ Nothing Alien Tech Used ----------------- None Achievements -------------- None Challenges ------------ None Game ------ Seed MyomerHardcellMembrane Manual? 0 Play Time 01:45:40 Cumulative 86.9 hours Start 2024.04.01 @ 08:33:42 End 2024.04.01 @ 16:49:12 Sessions 1 Manual Loads 0 Difficulty Rogue Special Mode None Game No. 132 Rogue 120 Adventurer 10 Explorer 2 Win Type - Total 0 Types 0/0/0/0/0/0/0/0/0 Lore% 24 Gallery% 52 Achievement% 37 Wizard Run 0 Options --------- Layout 0 ASCII 0 Keyboard 0 Movement Arrows Keybinds 0 Fullscreen 1 Font 36/Smallcaps Map View 76x50 Zoom Use 0% Tactical HUD 1 Map Filters NONE Filters NONE Steam 1 RUN: e9b603e1-d443-437d-9f8c-f01cfd81a675